Cogmind - Beta 12 @@@ ROGUE MODE // 2023.11.29 @ 19:59:56 Player: Figgis Result: Destroyed by G-47 Trooper with Particle Gun Performance ------------- Evolutions (3) 1500 Regions Visited (7) 1400 Robots Destroyed (126) 630 Value Destroyed (4133) 4133 Prototype IDs (8) 160 Alien Tech Used (0) 0 Bonus (1381) 1381 TOTAL SCORE: 9204 Bonus ------- High Alert Combat Kills 1381 Cogmind --------- Core Integrity 0/700 Matter 286/300 Energy 52/100 System Corruption 0% Temperature Cool (18) Movement Treading (160) Location -7/Lower Caves Parts ------- > --- POWER (1) -------- (None) > --- PROPULSION (4) --- Medium Treads Medium Treads > --- UTILITY (4) ------ Improved Heat Sink High-capacity Storage Unit Advanced Targeting Computer > --- WEAPON (4) ------- Beamcaster Mini Assault Cannon > --- INVENTORY (20) --- Improved Deuterium Engine Aluminum Leg Carbon-fiber Leg Makeshift Leg High-capacity Matter Pod (200) High-capacity Matter Pod (200) Weapon Cycler Advanced ECM Suite Improved Propulsion Shielding Hardened Heavy Armor Plating Improved Medium Armor Plating System Restoration Module Beam Rifle Heavy Ion Cannon Power Maul Makeshift Sword Peak State ------------ > --- POWER ------------ Heavy Deuterium Engine > --- PROPULSION ------- Airjet Gravmag System Improved Airjet Cooled Airjet > --- UTILITY ---------- Improved Heat Sink High-capacity Storage Unit Hacking Suite Hacking Suite > --- WEAPON ----------- Heavy Assault Cannon Mini Assault Cannon Mini Assault Cannon > --- INVENTORY -------- Improved Deuterium Engine Improved Deuterium Engine Armored Treads Armored Treads Armored Treads Armored Treads Advanced Treads Airjet Gravmag System High-capacity Matter Pod High-capacity Matter Pod Weapon Cycler Improved Propulsion Shielding Hardened Heavy Armor Plating Hardened Heavy Armor Plating System Restoration Module System Restoration Module Power Maul [Rating: 54] Favorites ----------- Power Ion Engine Engine Ion Engine Power Core Light Nuclear Core Propulsion Airjet Treads Armored Treads Leg Carbon-fiber Leg Hover Unit Airjet Flight Unit Improved Cesium-ion Thruster Utility Hacking Suite Device Improved Heat Sink Storage High-capacity Storage Unit Processor Advanced Targeting Computer Hackware Hacking Suite Protection Reflective Plating Weapon Mini Assault Cannon Energy Gun Small Laser Energy Cannon Heavy Particle Cannon Ballistic Gun Flak Gun Ballistic Cannon Mini Assault Cannon Impact Weapon Power Maul Slashing Weapon Katana Build | -11 -10 -10 -10 -9 -8 -7 -7 ------- Run | Jun Mat Min Exi Min Mat Fac Low Slots Evolved 6 | . . . . . 4 2 . Power . | . . . . . . . . Propulsion 2 | . . . . . 1 1 . Utility 2 | . . . . . 2 . . Weapon 2 | . . . . . 1 1 . Parts Attached 76 | 3 3 3 1 . 26 36 4 Power 8 | . 1 . . . 3 4 . Engine 7 | . 1 . . . 2 4 . Core 1 | . . . . . 1 . . Reactor . | . . . . . . . . Propulsion 29 | 2 . . . . 9 18 . Treads 13 | 2 . . . . . 11 . Leg 3 | . . . . . 3 . . Wheel . | . . . . . . . . Hover 11 | . . . . . 6 5 . Flight 2 | . . . . . . 2 . Utility 17 | . 1 1 1 . 5 6 3 Device 8 | . . . . . 2 5 1 Storage 3 | . 1 . 1 . 1 . . Processor 1 | . . . . . . . 1 Hackware 2 | . . . . . 2 . . Protection 3 | . . 1 . . . 1 1 Artifact . | . . . . . . . . Weapon 22 | 1 1 2 . . 9 8 1 Energy Gun 6 | 1 . 1 . . . 3 1 Energy Cannon 1 | . . . . . 1 . . Ballistic Gun 8 | . 1 1 . . 4 2 . Ballistic Cannon 5 | . . . . . 2 3 . Launcher . | . . . . . . . . Special Weapon . | . . . . . . . . Impact Weapon 1 | . . . . . 1 . . Slashing Weapon 1 | . . . . . 1 . . Piercing Weapon . | . . . . . . . . Special Melee Weapon . | . . . . . . . . Unidentified Prototypes 8 | . . . . . 2 6 . Parts Lost 32 | . . 1 . . 5 21 5 Power 4 | . . . . . 1 2 1 Propulsion 12 | . . . . . 1 11 . Utility 7 | . . . . . 2 4 1 Weapon 9 | . . 1 . . 1 4 3 Highest Loss Streak 4 | . . 1 . . 1 4 3 To Critical Strikes . | . . . . . . . . Average Slot Usage (%) 86 | . 85 92 100 100 88 84 75 Engine 7 | . 14 14 14 14 4 6 2 Core 1 | . . . . . 4 . . Treads 14 | . 28 28 28 28 2 15 15 Leg 1 | . . . . . 4 . . Hover 9 | . . . . . 19 11 . Device 5 | . . . . . 6 6 6 Storage 8 | . 14 14 14 14 9 7 7 Hackware 9 | . . . . . 14 12 . Protection 3 | . . 7 14 14 1 . 6 Energy Gun 4 | . 14 14 14 14 1 2 5 Ballistic Gun 6 | . 14 13 14 14 9 2 6 Ballistic Cannon 9 | . . . . . 4 15 14 Naked Turns . | . . . . . . . . Heaviest Build 92 | 1 12 16 51 51 65 92 92 Greatest Support 96 | 3 40 40 40 40 45 96 56 Greatest Overweight (x) 30 | . . . 1 1 3 30 1 Average Overweight (x) 1 | . . . . 1 1 1 1 Largest Inventory Capacity 20 | 5 8 8 20 20 20 20 20 Average Capacity 18 | 5 7 8 16 20 20 20 20 Most Carried 20 | 5 6 8 10 10 20 20 17 Average Carried 15 | 3 5 7 8 10 18 17 13 Final Capacity 20 | 5 8 8 20 20 20 20 20 Final Carried 18 | 5 6 8 10 10 18 12 17 Class Distribution -------------------- 38% | Hacker-Gunner 27% | Mutant 14% | Gunner 12% | Hacker-Mutant 3% | Tank 3% | Scavenger-Gunner Dominant Class ---------------- Mutant | -10/Materials Mutant | -10/Mines Mutant | -10/Exiles Mutant | -9/Mines Hacker-Gunner | -8/Materials Hacker-Gunner | -7/Factory Gunner | -7/Lower Caves Resources | -11 -10 -10 -10 -9 -8 -7 -7 ----------- Run | Jun Mat Min Exi Min Mat Fac Low Matter Collected 4753 | 223 38 58 30 25 664 3076 639 Remotely . | . . . . . . . . Salvage Created 4175 | . 38 224 . 70 910 2589 344 Parts 236 | . 5 19 . 8 65 120 19 Haulers Intercepted 5 | . . . . . 1 4 . Recyclers Shooed 5 | . . . . . 1 4 . Parts Field Recycled . | . . . . . . . . Retrieved Matter . | . . . . . . . . Parts Self-Destructed 11 | . . . . . . . 11 Prevented . | . . . . . . . . Kills | -11 -10 -10 -10 -9 -8 -7 -7 ------- Run | Jun Mat Min Exi Min Mat Fac Low Combat Hostiles Destroyed 114 | . 3 11 . 4 22 61 13 Guns 44 | . 3 11 . 4 9 12 5 Cannons 69 | . . . . . 13 48 8 AOE 1 | . . . . . . 1 . Classes Destroyed 13 | . 1 1 . 1 5 5 . Worker 5 | . . . . . . 5 . Builder 8 | . . . . 1 1 6 . Tunneler 1 | . . . . . 1 . . Hauler 5 | . . . . . 1 4 . Recycler 5 | . . . . . . 5 . Operator 1 | . . . . . . 1 . Watcher 7 | . . . . . 4 3 . Swarmer 27 | . 3 9 . 4 7 . 4 Grunt 58 | . . 2 . . 9 42 5 Brawler 1 | . . . . . . 1 . Sentry 13 | . . . . . 5 8 . Hunter 4 | . . . . . 1 3 . Programmer 7 | . . . . . . 7 . Wasp 3 | . . . . . . . 3 Thug 1 | . . . . . . . 1 Best Kill Streak 7 | . 3 3 . 4 5 7 4 Combat Bots Only 5 | . 3 3 . 4 5 4 4 Max Kills in Single Turn 4 | . 1 1 . 1 1 4 2 Gunslinging . | . . . . . . . . Exploded 1 | . . . . . . 1 . Melee . | . . . . . . . . Uniques/NPCs Destroyed . | . . . . . . . . Combat | -11 -10 -10 -10 -9 -8 -7 -7 -------- Run | Jun Mat Min Exi Min Mat Fac Low Damage Taken 7454 | . 97 429 . 111 1293 4423 1101 Core 1066 | . 7 55 . 29 262 533 180 Absorbed by Shields . | . . . . . . . . Core Remaining (%) 71 | 100 . . . 63 52 . . Volleys Fired 313 | . 9 32 . 10 71 167 24 Largest 4 | . 2 2 . 2 3 4 4 Hottest 204 | . 60 60 . 60 135 204 204 Shots Fired 803 | . 18 62 . 20 162 463 78 Gun 322 | . 18 62 . 20 91 95 36 Cannon 481 | . . . . . 71 368 42 Launcher . | . . . . . . . . Special . | . . . . . . . . Kinetic 638 | . 9 30 . 10 114 414 61 Thermal 165 | . 9 32 . 10 48 49 17 Explosive . | . . . . . . . . Electromagnetic . | . . . . . . . . Robot Hit Streak 15 | . 5 5 . 3 12 15 6 Robot Miss Streak 13 | . 1 5 . 3 7 6 13 Penetration Max 1 | . . . . . 1 1 . Secondary Targets 4 | . . 4 . . . . . Max Gunslinging Chain 1 | . . 1 . . . . . Shots Hit Robots 469 | . 12 31 . 9 84 295 38 Core Hits 268 | . 3 16 . 6 36 173 34 Critical Kills . | . . . . . . . . Critical Parts Destroyed . | . . . . . . . . Critical Strikes 21 | . . . . . 2 17 2 Burn 1 | . . . . . . . 1 Blast 20 | . . . . . 2 17 1 Melee Attacks . | . . . . . . . . Impact . | . . . . . . . . Slashing . | . . . . . . . . Piercing . | . . . . . . . . Sneak Attacks . | . . . . . . . . Combat Hostiles . | . . . . . . . . Follow-up Attacks . | . . . . . . . . Damage Inflicted 13491 | . 112 298 . 98 2420 9614 949 Guns 3443 | . 112 298 . 98 787 1715 433 Cannons 9369 | . . . . . 1633 7220 516 Explosions 676 | . . . . . . 676 . Melee . | . . . . . . . . Ramming 3 | . . . . . . 3 . Kinetic 10695 | . 48 109 . 14 1799 7946 779 Thermal 2793 | . 64 189 . 84 621 1665 170 Explosive . | . . . . . . . . Electromagnetic . | . . . . . . . . Impact . | . . . . . . . . Slashing . | . . . . . . . . Piercing . | . . . . . . . . Highest Corruption 2 | . . . . . . 2 . Average Corruption 1 | . . . . . . 1 . Corruption Purged 4 | . . . . . . 4 . Corruption Blocked . | . . . . . . . . Effects 16 | . . . . . . 16 . Message Errors 6 | . . . . . . 6 . Matter Fused 2 | . . . . . . 2 . Heat Flow Errors 3 | . . . . . . 3 . Energy Discharges 5 | . . . . . . 5 . Overload Shots . | . . . . . . . . Overflow Damage 663 | . . . . . 55 600 8 Projectiles 284 | . . . . . 55 221 8 Explosions 379 | . . . . . . 379 . Melee . | . . . . . . . . Knockbacks 67 | . . . . . 7 57 3 Impact . | . . . . . . . . Kinetic 61 | . . . . . 7 51 3 Secondary 6 | . . . . . . 6 . Self-Inflicted Damage 467 | . . . . . . 467 . Shots 5 | . . . . . . 5 . Rammed 1 | . . . . . . 1 . Targets Rammed 2 | . . . . . . 2 . Kicked . | . . . . . . . . Crushed 1 | . . . . . . 1 . Highest Temperature 489 | . 40 94 . 132 200 489 322 Average Temperature 96 | . 23 37 . 62 50 122 150 Received Heat Transfer 2298 | . . 78 . . 450 1527 243 Effects 8 | . . . . . . 6 2 Shutdowns 1 | . . . . . . 1 . Energy Bleed 1 | . . . . . . 1 . Interference 2 | . . . . . . . 2 Damage (minor) 1 | . . . . . . 1 . Damage (major) 3 | . . . . . . 3 . Siege Activations . | . . . . . . . . Robots Corrupted . | . . . . . . . . Combat Hostiles . | . . . . . . . . Parts Fried . | . . . . . . . . Impact Corruptions . | . . . . . . . . Robots Melted . | . . . . . . . . Combat Hostiles . | . . . . . . . . Parts Melted 4 | . 1 1 . . . 2 . Heat Transferred 4648 | . 150 425 . 200 938 2552 383 Parts Sabotaged . | . . . . . . . . Parts Stolen . | . . . . . . . . Parts Stripped . | . . . . . . . . Power Chain Reactions . | . . . . . . . . Missiles Intercepted . | . . . . . . . . Alert | -11 -10 -10 -10 -9 -8 -7 -7 ------- Run | Jun Mat Min Exi Min Mat Fac Low Peak Influence 1695 | . 70 227 . 95 339 1695 . Initial 154 | . . 27 . . 37 154 . Average 451 | . 24 133 . 12 188 681 . Maximum Alert Level 5 | . . 1 . . 1 5 . Low Security (%) 45 | 100 100 92 . 100 44 33 . Level 1 20 | . . 7 . . 55 4 . Level 2 5 | . . . . . . 9 . Level 3 13 | . . . . . . 23 . Level 4 13 | . . . . . . 24 . Level 5 1 | . . . . . . 3 . High Security . | . . . . . . . . Max Security . | . . . . . . . . Squads Dispatched 29 | . 1 . . . 2 26 . Investigation 6 | . 1 . . . 1 4 . Extermination 7 | . . . . . . 7 . Reinforcement 7 | . . . . . 1 6 . Assault 2 | . . . . . . 2 . Garrison 7 | . . . . . . 7 . Intercept . | . . . . . . . . Searches Triggered . | . . . . . . . . Construction Impeded 4 | . . . . . . 4 . Haulers Reinforced 1 | . . . . . . 1 . Active Scanning Responses . | . . . . . . . . Cargo Convoy Interrupts . | . . . . . . . . Stealth | -11 -10 -10 -10 -9 -8 -7 -7 --------- Run | Jun Mat Min Exi Min Mat Fac Low Distress Signals 3 | . . . . . 2 1 . Communications Jammed . | . . . . . . . . Distress Signals . | . . . . . . . . Times Spotted 153 | . 5 11 . 4 34 80 19 Peak Tracking Total 7 | . 3 3 . 4 4 5 7 Tactical Retreats 7 | . . . . . 4 3 . Traps | -11 -10 -10 -10 -9 -8 -7 -7 ------- Run | Jun Mat Min Exi Min Mat Fac Low Traps Triggered 4 | . 1 1 . . 1 1 . Indirectly . | . . . . . . . . Trap Hack Attempts . | . . . . . . . . Triggered . | . . . . . . . . Disarmed . | . . . . . . . . Reprogrammed . | . . . . . . . . Reused . | . . . . . . . . Traps Extracted . | . . . . . . . . Installed . | . . . . . . . . Triggered . | . . . . . . . . Machines | -11 -10 -10 -10 -9 -8 -7 -7 ---------- Run | Jun Mat Min Exi Min Mat Fac Low Machines Disabled 24 | . . . . . 2 22 . Max in Single Turn 2 | . . . . . 1 2 . Machines Repaired . | . . . . . . . . Machines Sabotaged . | . . . . . . . . Overloaded Fab Kills . | . . . . . . . . Hacking | -11 -10 -10 -10 -9 -8 -7 -7 --------- Run | Jun Mat Min Exi Min Mat Fac Low Machines Accessed 21 | . 1 1 . . 8 11 . Terminals 11 | . 1 . . . 7 3 . Fabricators 2 | . . . . . . 2 . Repair Stations 1 | . . . . . . 1 . Recycling Units 2 | . . . . . . 2 . Scanalyzers 3 | . . . . . 1 2 . Garrison Access 1 | . . . . . . 1 . Total Hacks 54 | . 2 1 . . 23 28 . Successful 32 | . 1 1 . . 13 17 . Failed 20 | . . . . . 9 11 . Catastrophic 1 | . . . . . . 1 . Database Lockouts 2 | . 1 . . . 1 . . Manual 15 | . 2 . . . 12 1 . Terminals 26 | . 2 . . . 19 5 . Fabricators 6 | . . . . . . 6 . Repair Stations 1 | . . . . . . 1 . Recycling Units 5 | . . . . . . 5 . Scanalyzers 13 | . . . . . 4 9 . Garrison Access 2 | . . . . . . 2 . Terminal Hacks 10 | . 1 1 . . 6 2 . Robot Analysis 3 | . 1 . . . 1 1 . Open Door 1 | . . 1 . . . . . Branch Access Points 2 | . . . . . 1 1 . Alert Level 1 | . . . . . 1 . . Locate Traps 1 | . . . . . 1 . . Dispatch Records 1 | . . . . . 1 . . Hauler Manifests 1 | . . . . . 1 . . Fabricator Hacks 4 | . . . . . . 4 . Load Schematic 2 | . . . . . . 2 . Build 2 | . . . . . . 2 . Repair Station Hacks . | . . . . . . . . Recycling Unit Hacks 2 | . . . . . . 2 . Retrieve Components 2 | . . . . . . 2 . Scanalyzer 11 | . . . . . 3 8 . Insert Component 5 | . . . . . 1 4 . Analyze 6 | . . . . . 2 4 . Garrison Access Hacks . | . . . . . . . . Unauthorized Hacks 5 | . . . . . 4 1 . Terminals 5 | . . . . . 4 1 . Botnet 5 | . . . . . 4 1 . Fabricators . | . . . . . . . . Repair Stations . | . . . . . . . . Recycling Units . | . . . . . . . . Scanalyzers . | . . . . . . . . Garrison Access . | . . . . . . . . Data Cores Recovered . | . . . . . . . . Used . | . . . . . . . . Hacking Detections 18 | . 1 . . . 7 10 . Full Trace Events 4 | . . . . . . 4 . Feedback Events 1 | . . . . . . 1 . Corruption 1 | . . . . . . 1 . Feedback Blocked . | . . . . . . . . Robot Schematics Acquired . | . . . . . . . . Robots Built . | . . . . . . . . Authchips . | . . . . . . . . Time . | . . . . . . . . Total Robot Build Rating . | . . . . . . . . Part Schematics Acquired 5 | . . . . . 1 4 . Parts Built 4 | . . . . . . 4 . Authchips . | . . . . . . . . Time 157 | . . . . . . 157 . Total Part Build Rating 14 | . . . . . . 14 . Parts Repaired . | . . . . . . . . Time . | . . . . . . . . Parts Recycled . | . . . . . . . . Recycled Matter . | . . . . . . . . Retrieved Matter . | . . . . . . . . Retrieved Components 13 | . . . . . . 13 . Parts Scanalyzed 5 | . . . . . 1 4 . Part Schematics Acquired 5 | . . . . . 1 4 . Parts Damaged . | . . . . . . . . Bothacking | -11 -10 -10 -10 -9 -8 -7 -7 ------------ Run | Jun Mat Min Exi Min Mat Fac Low Used RIF Installer . | . . . . . . . . Robots Hacked . | . . . . . . . . Non-combat . | . . . . . . . . Combat . | . . . . . . . . Robot Hacks Applied . | . . . . . . . . Relay Couplers Released . | . . . . . . . . Fabnet Peak Effective % . | . . . . . . . . Robots Rewired . | . . . . . . . . Allies Hacked . | . . . . . . . . Hacks Repelled . | . . . . . . . . Allies | -11 -10 -10 -10 -9 -8 -7 -7 -------- Run | Jun Mat Min Exi Min Mat Fac Low Total Allies . | . . . . . . . . Largest Group . | . . . . . . . . Highest-Rated Group . | . . . . . . . . Highest-Rated Ally . | . . . . . . . . Total Orders . | . . . . . . . . Ally Attacks . | . . . . . . . . Total Damage . | . . . . . . . . Kills . | . . . . . . . . Allies Corrupted . | . . . . . . . . Allies Melted . | . . . . . . . . Intel | -11 -10 -10 -10 -9 -8 -7 -7 ------- Run | Jun Mat Min Exi Min Mat Fac Low Robot Analysis Total 3 | . 1 . . . 1 1 . Derelict Logs Recovered 2 | . . . . . . . 2 Drone Launches . | . . . . . . . . Drone Recoveries . | . . . . . . . . Exploration | -11 -10 -10 -10 -9 -8 -7 -7 ------------- Run | Jun Mat Min Exi Min Mat Fac Low Turns Passed 9600 | 31 167 479 832 305 2325 4259 1202 Spaces Moved 4395 | 41 88 241 403 116 1096 1948 462 Core 49 | 41 4 . . . . 4 . Treads 2538 | . 84 241 403 116 124 1108 462 Legs 139 | . . . . . 139 . . Wheels . | . . . . . . . . Hover 1669 | . . . . . 833 836 . Flight . | . . . . . . . . Fastest Speed 50 | 50 50 160 160 240 172 103 240 Average Speed 187 | 50 155 160 206 240 182 179 240 Slowest Speed 1550 | 50 160 160 240 240 330 1550 240 Overloaded Moves . | . . . . . . . . Propulsion Burnouts . | . . . . . . . . Robots Hopped . | . . . . . . . . Cave-ins Triggered . | . . . . . . . . Exploration Rate (%) 47 | 3 21 60 89 39 70 43 51 Regions Visited 7 Branch Regions 4 Pre-discovered Areas . | . . . . . . . . Known Exits Taken 1 | . . . . . . 1 . Unknown Exits Taken 6 | 1 1 1 1 1 1 . . Scrap Searched 4 | . . . . . . . 4 Spaces Dug . | . . . . . . . . Terrain Destroyed 210 | . . . . . 30 169 11 Melee . | . . . . . . . . Projectile 107 | . . . . . 30 66 11 AOE 103 | . . . . . . 103 . Terrain Rammed . | . . . . . . . . Walls Destroyed . | . . . . . . . . Machines Disabled . | . . . . . . . . Actions | -11 -10 -10 -10 -9 -8 -7 -7 --------- Run | Jun Mat Min Exi Min Mat Fac Low Total 5053 | 50 103 278 406 126 1291 2295 504 Wait 127 | . . . . 1 30 94 2 Move 4388 | 40 87 240 402 115 1095 1947 462 Hop . | . . . . . . . . Pick Up 89 | 7 4 2 2 . 36 28 10 Fast Attach 18 | 1 . 2 . . 9 6 . Attach 41 | 2 3 . . . 9 23 4 Detach 5 | . . . . . 2 3 . Swap 17 | . . 1 1 . 8 7 . Drop 53 | . . 1 1 . 31 18 2 Fire 313 | . 9 32 . 10 71 167 24 Melee . | . . . . . . . . Ram . | . . . . . . . . Kick . | . . . . . . . . Crush 2 | . . . . . . 2 . Escape Stasis . | . . . . . . . . Rewire . | . . . . . . . . Trap . | . . . . . . . . Miscellaneous . | . . . . . . . . Route ------- -11/Junkyard -10/Materials -10/Mines (discovered 2 exits: [*Mat] / [*Exi]) -10/Exiles -9/Mines -8/Materials (discovered 2 exits: *Fac x2) -7/Factory (discovered 4 exits: [*Fac] / *Sto / *Low x2) -7/Lower Caves History --------- Turn | Location | Event 13 | -11/Junkyard | Discovered new exit (range 16) 32 | -11/Junkyard | Entered Materials 106 | -10/Materials | Discovered new exit (range 16) 190 | -10/Materials | Central database locked down 199 | -10/Materials | Entered Mines 305 | -10/Mines | Build established: Mutant 382 | -10/Mines | Met a Derelict who couldn't figure out how to use a Trap Extractor 621 | -10/Mines | Discovered new exit (range 5) 672 | -10/Mines | Deemed a non-threat by the Exiles lab entrance 672 | -10/Mines | Discovered new exit (range 5) 678 | -10/Mines | Entered Exiles 678 | -10/Exiles | Found Exiles lab abandoned 1471 | -10/Exiles | Discovered new exit (range 10) 1510 | -10/Exiles | Entered Mines 1759 | -9/Mines | Discovered new exit (range 10) 1815 | -9/Mines | Entered Materials 1815 | -8/Materials | Evolved 4 slots: Propulsion x1, Utility x2, Weapon x1 2845 | -8/Materials | Build established: Hacker-Gunner 2942 | -8/Materials | Discovered new exit (range 15) 3573 | -8/Materials | Central database locked down 3881 | -8/Materials | Discovered new exit (range 11) 3890 | -8/Materials | Build established: Hacker-Mutant 4140 | -8/Materials | Entered Factory 4140 | -7/Factory | Evolved 2 slots: Propulsion x1, Weapon x1 4454 | -7/Factory | Build established: Hacker-Gunner 4455 | -7/Factory | Discovered new exit (range 10) 4935 | -7/Factory | Fabricated Arm. Treads? 5388 | -7/Factory | Discovered new exit (range 5) 5619 | -7/Factory | Garrison activated, responded to threat 5829 | -7/Factory | Garrison activated, responded to threat 5884 | -7/Factory | Lost 4 parts (3n1w) 6137 | -7/Factory | Build established: Hacker-Mutant 6258 | -7/Factory | Garrison activated, responded to threat 6405 | -7/Factory | Discovered new exit (range 15) 6528 | -7/Factory | Build established: Hacker-Gunner 6579 | -7/Factory | Identified exit to Storage 6579 | -7/Factory | Identified exit to Lower Caves 6851 | -7/Factory | Lost 3 parts (1n1u1w) 6955 | -7/Factory | Core integrity fell below 50% 7707 | -7/Factory | Build established: Mutant 7740 | -7/Factory | First assault squad dispatched 8069 | -7/Factory | Fabricated Med. Treads? 8102 | -7/Factory | Build established: Gunner 8399 | -7/Factory | Entered Lower Caves 8425 | -7/Lower Caves | Ambushed by wild Derelicts 8438 | -7/Lower Caves | Core integrity fell below 20% 8577 | -7/Lower Caves | Learned Factory interactive machine intel 9182 | -7/Lower Caves | Learned Factory non-interactive machine intel 9601 | -7/Lower Caves | Destroyed by G-47 Trooper with Particle Gun Last Messages --------------- 09335_ Found Adv. ECM Suite. 09335_ Found Mak. ECM Suite. 09335_ Found 29 Matter. 09336_ Acquired 29 matter. 09342_ Acquired Mak. Leg. 09348_ Acquired Adv. ECM Suite. 09351_ Acquired Beam Rifle. 09566_ Searching scrap... 09566_ Found Imp. Targeting Computer. 09566_ Found Weapon Cycler. 09566_ Found Imp. Targeting Computer. 09566_ Found Target Analyzer. 09566_ Found 23 Matter. 09567_ Acquired 12 matter. 09592_ Flak Gun destroyed. 09594_ G-50 Soldier Lgt. Angular Momentum Engine blasted off. 09594_ G-50 Soldier destroyed. 09597_ Mni. Assault Cannon destroyed. 09597_ Critical hit (Burn: +37). 09599_ Med. Armor Plating destroyed. Map ----- +----------------------------------------------------+ | ?????????????????????????????????????????????????? | | ?????????????????????????????????????????????????? | | ?????????????????????????????????????????????????? | | ?????????????????????????????????????????????????? | | ?????????????????????????????????????????????????? | | ?????????????????????????????????????????????????? | | ?????????????????????????????????????????????????? | | ?????????????????????????????????????????????????? | | ?????????????????????????????????????????????????? | | ?????????????????????????????????????????????????? | | ?????????????????????????????????????????????????? | | ?????????????????????????????????????????????????? | | ?????????????????????????????????????????????????? | | ?????????????????????????????????????????????????? | | ?????????????????????????????????????????????????? | | ?????????????????????????????????????????????????? | | ?????????????????????????????????????????????????? | | ?????????????????????????????????????????????????? | | ??????????????#??#???????????????????????????????? | | ??????????????? # ??????????????????????????????? | | ????????????????? ####?????????????????????????? | | ??????????????????? #?????#??????????????????? | | ????????????????????? %???? ##?????????????????? | | ??????????????????????? #### ;### ##???????????? | | ????????????????????????#gs s #???????????? | | ????????????????????????#@s #??????????? | | ????????????????????????# ####### ????????? | | ?????????????? ???????# #?????????????????????? | | ????????????? ??????#! ######????????????????? | | ????????????? ???###!% ##???????????????? | | ???????????? #?## !! #???????????????? | | ??????????? ## #???????????????? | | ??????????? ##???????????????? | | ??????????? #????????????????? | | ???????????? ### #????????????????? | | ????????????????#### #????????????????? | | ???????????????????### #????????????????? | | ?????????????????????# ##????????????????? | | ?????????????????????## ##?????????????????? | | ??????????????????????## ##??????????????????? | | ???????????????????????## #???????????????????? | | ????????????????????????# ##??????????????????? | | ????????????????????????# ##?????????????????? | | ????????????????????????## ##????????????###?? | | ?????????????????????????### #???????????? #?? | | ???????????????????????????# #???????????? #?? | | ???????????????????????????## ##???????????? #?? | | ????????????????????????????# ##????????????? #?? | | ????????????????????????????# #####?????????? #?? | | ????????????????????????????# #??????#### #?? | +----------------------------------------------------+ Best States ------------- Heat Dissipation 48 Coolant Potential 65 Energy Generation 18 Energy Capacity 310 Matter Stores 300 Matter Capacity 300 Sight Range 16 Terrain Scan Density 10 Armor Coverage 600 Resistance: TH 10 Evasion (%) 50 Targeting Accuracy 8 Recoil Reduction 4 Offensive Hacking 20 Item Schematics ----------------- VSS Leg | -8/Materials | Scanalyzed Imp. Deuterium Engine | -7/Factory | Scanalyzed Hrd. Heavy Armor Plating | -7/Factory | Scanalyzed Arm. Treads | -7/Factory | Scanalyzed Med. Treads | -7/Factory | Scanalyzed Robot Schematics ------------------ None Fabricated ------------ Arm. Treads | x2 | -7/Factory Med. Treads | x2 | -7/Factory Alien Tech Used ----------------- None Achievements -------------- None Challenges ------------ None Game ------ Seed MiningRecoilInsulator Manual? 0 Play Time 00:42:36 Cumulative 119.2 hours Start 2023.11.29 @ 19:20:15 End 2023.11.29 @ 19:59:56 Sessions 1 Manual Loads 0 Difficulty Rogue Special Mode None Game No. 185 Rogue 182 Adventurer 3 Explorer 0 Win Type - Total 0 Types 0/0/0/0/0/0/0/0/0 Lore% 44 Gallery% 60 Achievement% 41 Wizard Run 0 Options --------- ASCII 0 Keyboard 0 Movement Mouse Keybinds 0 Fullscreen 2 Font 18/SmallcapsGlow Map View 76x50 Tactical HUD 1 Map Filters NONE Filters NONE Steam 1 RUN: 8c2642ca-9f86-4989-827a-6bf573964718